[Event "15th Paleochora Open 2022"]
[Site "Paleochora"]
[Date "2022.07.20"]
[Round "5.3"]
[White "Yilmazyerli, Mert"]
[Black "Meshkovs, Nikita"]
[Result "1/2-1/2"]
[ECO "E05"]
[WhiteElo "2520"]
[BlackElo "2535"]
[Annotator "TA"]
[PlyCount "43"]
[EventDate "2022.07.17"]
[EventType "swiss"]
[EventCountry "GRE"]
[SourceTitle "playchess.com"]
[Source "ChessBase"]
[SourceQuality "1"]
[TimeControl "40/5400+30:900+30"]

{[%evp 22,29,7,6,9,1,8,15,2,11]} 1. Nf3 d5 2. g3 Nf6 3. Bg2 e6 4. O-O Be7 5. c4 O-O 6. d4 dxc4 7. Qc2 a6 8. a4 Bd7 9. Qxc4 Bc6 10. Bf4 Bd6 11. Bg5 Nbd7 12. Nc3 {[%cal Oe2e4] The position is equal.} h6 {E05: Open Catalan: 5 Nf3 Be7.} 13. Bxf6 Nxf6 14. Nd2 Bxg2 15. Kxg2 {[#] An uneventful encounter.} {Predecessor:} a5 $146 16. Rfd1 c6 17. Nde4 Nxe4 18. Nxe4 Bb4 19. Nc5 Qd5+ 20. Qxd5 exd5 21. Rac1 Bxc5 22. Rxc5 {0-1 (96) Banusz,T (2613)-Harikrishna,P (2752) Monzon 2016} 1/2-1/2

[Event "15th Paleochora Open 2022"]
[Site "Paleochora"]
[Date "2022.07.20"]
[Round "5.4"]
[White "Kourkoulos-Arditis, Stamatis"]
[Black "Nevednichy, Vladislav"]
[Result "1-0"]
[ECO "E15"]
[WhiteElo "2535"]
[BlackElo "2473"]
[Annotator "TA"]
[PlyCount "149"]
[EventDate "2022.07.17"]
[EventType "swiss"]
[EventCountry "GRE"]
[SourceTitle "playchess.com"]
[Source "ChessBase"]
[SourceQuality "1"]
[TimeControl "40/5400+30:900+30"]

{[%evp 21,149,0,0,0,0,0,0,0,0,0,0,0,0,0,16,16,16,16,29,28,33,0,0,0,0,0,0,0,0,0,0,0,0,0,0,0,0,0,0,0,0,0,0,0,4,0,0,-22,0,0,0,-31,0,0,0,0,0,0,0,0,0,0,0,0,0,0,34,34,34,34,41,41,58,41,41,27,48,48,48,48,48,48,209,209,209,209,209,209,209,209,209,209,209,202,200,158,276,272,314,314,362,360,716,690,794,777,756,741,568,590,850,787,666,610,1316,1281,1989,1925,1805,1614,29973,29974,29981,29982,29982,29983,29985,29984,29983,29983]} 1. d4 d5 2. c4 e6 3. Nf3 Nf6 4. g3 Bb4+ 5. Bd2 Be7 6. Bg2 O-O 7. O-O Nbd7 8. b3 c6 9. Nc3 b6 10. Bf4 Ba6 11. Qd3 Rc8 12. Rac1 {E15: Queen's Indian: 4 g3 sidelines, 4 g3 Ba6 and 4 g3 Bb7 early deviations.} Nh5 13. Bd2 Nhf6 {[%cal Bh5f6,Bf6e4,Be4g5,Bg5f7,Bf7h6,Bh6g4][%mdl 32]} 14. Rfd1 {The position is equal.} c5 {[#]} 15. Nb5 $146 ({Predecessor:} 15. Qb1 dxc4 16. dxc5 bxc5 17. Bf4 Qa5 18. e4 Rfd8 19. e5 Ne8 20. Ne4 cxb3 21. axb3 {0-1 (57) Bonay Toscas,S (2140)-Perez Lopez,A (2265) ICCF email 2016}) 15... Bxb5 16. cxb5 Ne4 17. Be1 f5 18. Ne5 Nxe5 19. dxe5 Qc7 20. f3 Ng5 21. h4 Nf7 22. f4 Rfd8 23. e3 h5 24. Qe2 g6 25. Bf3 Nh6 26. a4 Ng4 27. Bc3 Kf7 28. Bb2 Rd7 29. Rd2 Rdd8 30. Bg2 Rd7 31. Bf1 Qd8 32. Rcd1 Rcc7 33. Qf3 Qc8 34. Kh1 Qd8 35. Be2 Qc8 36. Bf1 Qd8 37. Be2 Kf8 38. Bf1 Ke8 39. Rc1 Kf7 40. Rdc2 Qc8 41. Bc3 d4 42. Bd2 ({But not} 42. exd4 $2 cxd4 43. Bc4 dxc3 $19) 42... Qd8 43. Bc4 dxe3 (43... Bxh4 $5 44. gxh4 Qxh4+ 45. Kg1 Qh2+ 46. Kf1 d3 $11) 44. Bxe3 Nxe3 45. Qxe3 Rd4 46. Qf3 Re4 47. Re2 Rxe2 48. Qxe2 Qa8+ 49. Kh2 Rd7 50. Rd1 {[%cal Bc1d1,Bd1d3,Bd3e3,Be3e2][%mdl 32]} Rd4 51. Rd3 Qe4 $2 {[#] This costs Black the game.} (51... Qb7 $14) 52. Qxe4 $1 $18 fxe4 {[%mdl 4096] Endgame KRB-KRB} 53. Re3 Bf8 54. Re2 Be7 55. Kg2 Bd8 56. Kf2 Ke7 57. Ke3 Kf7 58. Re1 Be7 {[#]} (58... Bc7 $16 {was called for.} 59. Re2 Bd8) 59. Rf1 $1 Kg7 60. Bxe6 Rd3+ 61. Kxe4 Rxg3 $2 (61... Rd4+ 62. Ke3 Bd8) 62. Rd1 Bxh4 63. Rd7+ Kf8 64. Rxa7 Bd8 65. Rh7 h4 66. Bc4 h3 67. Be6 Ke8 68. Rxh3 Rxh3 69. Bxh3 {Hoping for Kd5. KB-KB} Bh4 70. Kd5 {Threatening mate with Kc6.} Bg3 71. Kc6 {White mates.} Bxf4 72. Kxb6 Bxe5 73. Kxc5 Kd8 74. Kc6 Bc3 75. b6 {Weighted Error Value: White=0.03 (flawless) /Black=0.14 (very precise)} 1-0

[Event "15th Paleochora Open 2022"]
[Site "Paleochora"]
[Date "2022.07.20"]
[Round "5.5"]
[White "Ali Marandi, Cemil Can"]
[Black "Spyropoulos, Nikolaos"]
[Result "1-0"]
[ECO "D02"]
[WhiteElo "2561"]
[BlackElo "2446"]
[Annotator "TA"]
[PlyCount "73"]
[EventDate "2022.07.17"]
[EventType "swiss"]
[EventCountry "GRE"]
[SourceTitle "playchess.com"]
[Source "ChessBase"]
[SourceQuality "1"]
[TimeControl "40/5400+30:900+30"]

{[%evp 14,73,22,21,20,7,11,15,6,12,12,12,12,19,30,22,20,30,29,38,26,29,72,65,75,54,84,75,89,98,123,130,122,120,104,108,116,82,147,131,197,174,235,229,213,222,275,279,533,474,529,507,576,570,552,590,574,572,687,343,29991,29992]} 1. d4 Nf6 2. Nf3 e6 3. Bf4 c5 4. e3 d5 5. c3 Nc6 6. Nbd2 Bd6 {6...Nh5 is setting a new trend.} 7. Bg3 Qe7 8. Ne5 Nd7 {[%cal Rd7e5] D02: 1 d4 d5 2 Nf3 sidelines, including 2...Nf6 3 g3 and 2...Nf6 3 Bf4.} 9. Bb5 Ndxe5 10. dxe5 Bc7 {[#] The position is equal.} 11. Qg4 $146 ({Predecessor:} 11. O-O Bd7 12. Nf3 g5 13. c4 dxc4 14. Qe2 h5 15. h4 g4 16. Nd2 Nxe5 17. Bxd7+ Qxd7 18. Bxe5 Bxe5 19. Nxc4 {0-1 (44) Besedes,D (2276)-Yang,K (2481) Chess.com INT 2020}) 11... Qf8 12. Bxc6+ bxc6 13. O-O Ba6 14. Rfe1 h5 15. Qa4 {[%csl LRa6,LRc6]} Bb5 16. Qc2 h4 17. Bf4 {[%cal Bg3f4,Bf4e3,Be3c5][%mdl 32]} Ba5 18. a4 Ba6 19. b4 Bc7 20. e4 {[%cal Be3e4,Be4e5][%mdl 32]} Qe7 21. Be3 $36 {[%mdl 2048] White has strong initiative.} Bxe5 22. Nf3 Bd6 23. e5 {[%mdl 64] Deflection} Bc7 24. Bxc5 Qd7 25. Qd2 {White is more active.} Rh5 ({Black should play} 25... h3) 26. h3 $1 $16 Bc4 (26... Bd8 $16 27. Qd1 Rh6) 27. Qd4 $18 {[%csl LRa7,LRh4]} Bd8 {[#]} (27... a5 $142 28. Nxh4 f5) 28. Nd2 $1 Ba6 29. Rad1 {[%cal Ba1d1,Bd1d6,Bd6e6][%mdl 32]} Qc8 30. c4 ({But not} 30. Bxa7 $6 Kf8 31. Bc5+ Kg8 $18) 30... Bxc4 $2 (30... Bb7 {is a better defense.} 31. cxd5 (31. Bxa7 Kf8 $18) 31... cxd5 32. Bxa7 Kf8) 31. Nxc4 dxc4 32. Qxc4 Qb7 33. Qg4 {[%csl LRg7,LRh5]} g6 34. Rd6 {[%cal Od6e6] Hoping for Rxe6+!} Rf5 35. Red1 Rxe5 {[#]} 36. Qf4 (36. Rxd8+ $142 $1 {[%mdl 512]} Rxd8 37. Rxd8+ Kxd8 38. Qxh4+ Rg5 39. Qxg5+ Kc8 40. Qh6) 36... Rh5 $2 {[#]} (36... Rxc5 $18 37. bxc5 Be7) 37. Rxe6+ $3 {[%mdl 512] Weighted Error Value: White=0.14 (very precise) /Black=0.49} 1-0

[Event "15th Paleochora Open 2022"]
[Site "Paleochora"]
[Date "2022.07.20"]
[Round "5.6"]
[White "Basso, Pier Luigi"]
[Black "Naoum, Spyridon"]
[Result "0-1"]
[ECO "E62"]
[WhiteElo "2561"]
[BlackElo "2346"]
[Annotator "TA"]
[PlyCount "98"]
[EventDate "2022.07.17"]
[EventType "swiss"]
[EventCountry "GRE"]
[SourceTitle "playchess.com"]
[Source "ChessBase"]
[SourceQuality "1"]
[TimeControl "40/5400+30:900+30"]

{[%evp 19,98,-11,-11,-44,-41,-35,-38,-39,-36,-71,-66,-84,-84,-90,-86,-86,-86,-87,-87,-75,-72,-77,-83,-89,-29,-45,-59,-57,-54,-85,-77,-124,-96,-127,-112,-150,-129,-152,-131,-169,-159,-185,-173,-179,-171,-181,-169,-174,0,-177,0,-168,-155,-150,-150,-181,-182,-259,-247,-340,-329,-365,-358,-361,-304,-353,-362,-331,-349,-381,-370,-441,-415,-444,-432,-443,-426,-406,-366,-352,-335]} 1. d4 Nf6 2. c4 g6 3. g3 Bg7 4. Bg2 O-O 5. Nc3 d6 6. Nf3 Nc6 7. d5 Na5 8. Nd2 c6 9. O-O cxd5 10. cxd5 Bd7 11. b4 {E62: King's Indian: Fianchetto: 6...c6 and Panno Variation (6...Nc6) without ...a6.} Qc7 12. bxa5 {[#] Bb2 is the strong threat.} Qxc3 13. Nb3 {Black is slightly better.} Rfc8 14. Be3 {[#]} Ng4 $146 ({Predecessor:} 14... Bb5 15. Re1 Nd7 16. Bh3 Rc4 17. Rc1 Qb4 {0-1 (17) Shneider,A (2540)-Gulko,B (2565) Philadelphia 1991}) 15. Bd4 Bxd4 {Black is much more active. The white rooks are badly placed.} 16. Qxd4 Qxd4 17. Nxd4 Rc4 18. e3 Rac8 19. Rfb1 R8c7 20. h3 Nf6 21. g4 Ne8 (21... h6 $17) 22. Rb2 a6 23. Rab1 Bc8 24. Kf1 h6 25. Ke2 (25. Rd1 $142) 25... Nf6 26. Kd2 Kf8 {[%cal Bg8f8,Bf8e8,Be8d8][%mdl 32]} 27. f4 Ra4 28. Nb3 g5 29. Rf1 Ke8 30. Rf2 Rcc4 {[%cal Rg5f4]} 31. Kd3 Kd8 ({Weaker is} 31... gxf4 32. Rxf4 Nd7 33. Rxc4 $17) 32. Nd2 Rc5 33. Nb3 Rcc4 34. Nd2 $1 Rc5 {[%cal Bc4c5,Bc5b5,Bb5b4][%mdl 32]} 35. Nb3 $1 Rb5 36. fxg5 hxg5 37. e4 Nd7 38. Rbc2 (38. Kc3 $142 Ne5 39. Bf1) 38... Ne5+ 39. Ke3 Rbb4 40. Rf1 Bd7 41. Rfc1 Rc4 42. Nd2 Rxc2 43. Rxc2 Rxa5 44. Bf1 Ra3+ 45. Kd4 f6 46. Nb3 Ba4 47. Rb2 Bxb3 48. axb3 Ra1 49. Rf2 Rc1 {Weighted Error Value: White=0.19 (very precise) /Black=0.16 (very precise)} 0-1

[Event "15th Paleochora Open 2022"]
[Site "Paleochora"]
[Date "2022.07.20"]
[Round "5.7"]
[White "Mitsis, Georgios"]
[Black "David, Alberto"]
[Result "1/2-1/2"]
[ECO "E04"]
[WhiteElo "2334"]
[BlackElo "2534"]
[Annotator "TA"]
[PlyCount "76"]
[EventDate "2022.07.17"]
[EventType "swiss"]
[EventCountry "GRE"]
[SourceTitle "playchess.com"]
[Source "ChessBase"]
[SourceQuality "1"]
[TimeControl "40/5400+30:900+30"]

{[%evp 9,76,15,15,17,21,8,14,10,38,29,31,29,21,37,41,25,21,26,35,14,21,9,10,10,9,0,0,-18,-17,-7,28,0,0,0,0,-8,11,-11,-2,-2,-6,-12,-6,-4,0,-2,0,0,0,-6,-3,-3,-3,-2,-2,-2,-2,-8,-8,-14,-6,-8,0,0,0,0,0,0,0]} 1. d4 e6 2. c4 Nf6 3. Nf3 d5 4. g3 dxc4 5. Bg2 c6 6. a4 {E04: Open Catalan: 5 Nf3.} (6. Ne5 {is more complex.} Bb4+ 7. Nc3 Nd5 8. Bd2) 6... c5 7. O-O Nc6 {[%cal Rc5d4]} 8. dxc5 Bxc5 $1 {[%mdl 4] now scores much better than the old 8...Qxd1.} 9. Qxd8+ Kxd8 10. Nbd2 Nd5 11. Nxc4 f6 {[#] Prevents Nce5.} 12. a5 $146 ({Predecessor:} 12. Bd2 Ke7 13. Rfc1 b6 14. a5 Bd7 15. e3 Rhc8 16. Ne1 Nxa5 17. Nxa5 bxa5 18. e4 {½-½ (76) Can,E (2577)-Abdusattorov,N (2648) Sharjah 2021}) 12... Bd7 13. Bd2 Rc8 14. e4 {[%cal Be2e4,Be4e5][%mdl 32]} Ndb4 15. e5 Ke7 16. Rad1 Nd5 17. b3 Rhd8 18. g4 Be8 19. exf6+ Nxf6 20. Nfe5 (20. Rde1 $5 {[%cal Rh2h3]}) 20... Nxe5 {The position is equal.} 21. Nxe5 Bb5 22. Rfe1 Rd4 (22... Rxd2 $5 23. Rxd2 Bb4 $11) 23. Bf3 {[#]} Rxd2 $1 24. Rxd2 {Strongly threatening Rc2.} Bb4 $1 {[%csl LRa5,LRd2] A strong pair of Bishops.} 25. Rdd1 {Threatens to win with Rc1.} Bxe1 26. Rxe1 Rc7 27. g5 Nd7 28. Nxd7 Bxd7 $11 {[%mdl 4096] Endgame KRB-KRB} 29. Be4 Rc5 {[%csl LRa5,LRg5]} 30. f4 h6 31. gxh6 ({But not} 31. Bxb7 hxg5 32. fxg5 Rxg5+ 33. Bg2 Rxa5 $17) 31... gxh6 32. Bxb7 Rxa5 33. Be4 Ra2 34. Re3 a5 35. Bd3 a4 36. bxa4 Rxa4 37. f5 Kf6 38. fxe6 Bxe6 {Weighted Error Value: White=0.05 (flawless) /Black=0.04 (flawless)} 1/2-1/2

[Event "15th Paleochora Open 2022"]
[Site "Paleochora"]
[Date "2022.07.20"]
[Round "5.8"]
[White "Grigorov, Grigor"]
[Black "Vojtek, Vladimir"]
[Result "1-0"]
[ECO "D06"]
[WhiteElo "2511"]
[BlackElo "2314"]
[Annotator "TA"]
[PlyCount "82"]
[EventDate "2022.07.17"]
[EventType "swiss"]
[EventCountry "GRE"]
[SourceTitle "playchess.com"]
[Source "ChessBase"]
[SourceQuality "1"]
[TimeControl "40/5400+30:900+30"]

{[%evp 11,82,23,42,39,46,29,62,54,54,52,55,55,51,44,43,42,139,134,136,134,129,143,197,197,210,212,258,236,251,249,298,285,301,264,258,256,250,267,305,314,302,282,277,291,389,375,395,376,377,370,366,229,231,207,219,211,208,209,239,198,282,272,290,270,353,303,329,322,816,816,808,794,954]} 1. d4 d5 2. Nf3 Bf5 3. c4 e6 4. Nc3 Nc6 5. Bf4 Nf6 6. e3 Be7 7. Rc1 {D06: Queen's Gambit: Symmetrical and Baltic Defences.} O-O 8. a3 Nh5 9. Be5 {White is slightly better.} Nf6 10. Bg3 Ne4 11. cxd5 exd5 {[#]} 12. Bb5 $146 ({Predecessor:} 12. Qb3 Na5 13. Qxd5 Qxd5 14. Nxd5 Nc6 15. Rxc6 g6 16. Nxe7+ Kh8 17. Rxc7 b6 18. Nxf5 Nxg3 19. Nxg3 a5 20. h4 Rad8 21. h5 Rd6 22. hxg6 fxg6 23. Rhxh7+ Kg8 24. Rcg7# {1-0 (23) Gheury,J-Remy,C Huy 1991}) 12... Nxg3 13. hxg3 Nb8 {White leaves nothing to chance now.} (13... Qd6 $14) 14. Bd3 $16 Bxd3 15. Qxd3 {[%csl Gh1][%cal Rd3h7] [#]} h6 16. Qb5 {[%csl LRb7,LRd5] White is much more active.} b6 (16... Nd7 $16) 17. Qxd5 $18 Nd7 18. Qc6 Nf6 19. O-O a6 20. e4 {[%cal Be3e4,Be4e5][%mdl 32]} Rc8 21. e5 Qd7 22. Qxd7 Nxd7 23. Nd5 {[%csl LRc7,LRe7]} Bd8 24. Rc6 Re8 25. Rfc1 Re6 26. Rxe6 fxe6 27. Nf4 Kf7 28. d5 Nf8 29. Rc6 exd5 30. e6+ Ke8 31. Nxd5 Ng6 32. Nd4 {[#] Black must now prevent Nxb6.} Ne7 33. Nxe7 Bxe7 {[%mdl 4096] Endgame KRB-KRN} 34. Nf5 Kf8 35. Kh2 Bf6 (35... g6 {might work better.}) 36. b3 h5 37. a4 g6 38. Ne3 Bd4 39. Nd5 Bxf2 $2 (39... Ke8 40. f3 Rd8) 40. e7+ Kg7 41. Nxc7 h4 {Weighted Error Value: White=0.09 (flawless) /Black=0.26 (precise)} 1-0

[Event "15th Paleochora Open 2022"]
[Site "Paleochora"]
[Date "2022.07.20"]
[Round "5.9"]
[White "Godzwon, Iwo"]
[Black "Zwardon, Vojtech"]
[Result "1-0"]
[ECO "B36"]
[WhiteElo "2336"]
[BlackElo "2503"]
[Annotator "TA"]
[PlyCount "87"]
[EventDate "2022.07.17"]
[EventType "swiss"]
[EventCountry "GRE"]
[SourceTitle "playchess.com"]
[Source "ChessBase"]
[SourceQuality "1"]
[TimeControl "40/5400+30:900+30"]

{[%evp 22,87,39,38,40,40,44,48,77,72,66,74,81,68,104,67,67,70,88,75,125,116,146,139,131,118,117,89,118,109,92,92,128,130,130,114,185,166,139,90,495,500,545,528,2843,2831,2078,1599,1578,1590,1463,1423,1478,1389,820,837,808,679,622,600,2813,1734,29972,29974,29973,29974,29969,5143]} 1. e4 c5 2. Nf3 Nc6 3. d4 cxd4 4. Nxd4 g6 5. c4 Nf6 6. Nc3 d6 7. Be2 Nxd4 8. Qxd4 Bg7 9. Be3 O-O 10. Qd2 Qa5 11. O-O Be6 12. Rfc1 Rfc8 {B36: Sicilian: Maroczy Bind: Gurgenidze System.} 13. b3 Nd7 {[%cal Ob7b5]} 14. Rab1 f5 {White is slightly better.} 15. b4 Qd8 16. exf5 Bxf5 {[#]} 17. Rb3 $146 ({Predecessor:} 17. Bd3 Qf8 18. f4 Bxd3 19. Qxd3 Qf5 20. Ne4 Nf6 21. Nxf6+ Bxf6 22. Qd5+ Qxd5 23. cxd5 {½-½ (32) Vehi Bach,V (2405)-Sanglas Clariana,J (2207) Barbera del Valles 2010}) 17... Kh8 18. Nd5 Nb6 19. Nxb6 axb6 20. Bf3 {[%cal Be2f3,Bf3b7,Bb7c6][%mdl 32]} Ra7 (20... Qc7 $142) 21. a4 $16 {[%cal Oa4a5] Black must now prevent a5!} Rxa4 22. Bxb7 Rb8 23. Bc6 Ra7 24. Bd4 Qf8 25. h3 {White is more active.} Bxd4 26. Qxd4+ Qg7 {[#]} 27. Qe3 Rc7 28. Bd5 Qf6 {[#]} (28... e6 $16 {was worth a try.}) 29. Ra3 $1 $18 Kg7 30. Qd2 (30. g4 $142 Bd7 31. Qd2) 30... b5 $2 {[%mdl 8192] This costs Black the game.} (30... e6 $16) 31. g4 {[%cal Bg2g4,Bg4f5][%mdl 32]} e6 32. Bg2 ({Less strong is} 32. gxf5 exd5 33. cxb5 (33. cxd5 Rxc1+ 34. Qxc1 Rf8 $11) 33... Re7 $16) 32... Rxc4 33. Ra7+ Kg8 34. gxf5 {White threatens Rxc4 and mate.} Rd4 35. Qh6 Rh4 36. Qe3 gxf5 37. Qg3+ Kh8 38. Rac7 {Rc8+ would kill now.} Rc4 39. R7xc4 bxc4 40. Qxd6 Rc8 41. b5 {[%cal Bb4b5,Bb5b6,Bb6b7][%mdl 32]} c3 42. b6 {White mates.} Rg8 43. b7 Qg7 44. Qg3 {Weighted Error Value: White=0.11 (very precise) /Black=0.72} 1-0

[Event "15th Paleochora Open 2022"]
[Site "Paleochora"]
[Date "2022.07.20"]
[Round "5.10"]
[White "Yankelevich, Lev"]
[Black "Kouskoutis, Georgios-Alexandros"]
[Result "1/2-1/2"]
[ECO "E06"]
[WhiteElo "2496"]
[BlackElo "2292"]
[Annotator "TA"]
[PlyCount "79"]
[EventDate "2022.07.17"]
[EventType "swiss"]
[EventCountry "GRE"]
[SourceTitle "playchess.com"]
[Source "ChessBase"]
[SourceQuality "1"]
[TimeControl "40/5400+30:900+30"]

{[%evp 19,79,36,37,26,42,21,80,68,72,41,45,31,38,23,37,29,27,3,45,42,37,38,31,43,45,0,0,0,0,-6,0,-7,-10,-12,0,0,0,0,0,0,0,0,0,0,0,0,0,0,0,0,0,0,0,0,0,0,0,0,0,0,0,-45]} 1. d4 Nf6 2. Nf3 d5 3. c4 e6 4. g3 Be7 5. Bg2 O-O 6. O-O c6 7. Nc3 b6 {[%cal Bb7b6,Bb6b5,Bb5b4][%mdl 32]} 8. Ne5 Bb7 9. e4 dxc4 10. Nxc4 Ba6 {has lost popularity (10...b5).} 11. b3 {E06: Closed Catalan: Early deviations.} b5 $1 12. Ne3 Nbd7 (12... b4 $11 {keeps the balance.} 13. Ne2 Bb5) 13. e5 {White is better.} Nd5 {[#]} 14. Ncxd5 $146 (14. Ne4 {is interesting.} Bb7 15. Qg4 Kh8 16. Qh5) ({Predecessor:} 14. Ne4 Rc8 15. Qg4 Kh8 16. Rd1 Qe8 17. Bd2 Bb7 18. Nxd5 cxd5 19. Ng5 h6 20. Nh3 {1-0 (44) Yilmaz,M (2581)-Benidze,D (2459) Istanbul 2014}) 14... cxd5 15. f4 b4 16. Rf2 {[%cal Bf1f2,Bf2c2,Bc2c5][%mdl 32]} f5 17. g4 g6 18. Rc2 {[#] Hoping for gxf5.} Nb6 19. a3 bxa3 20. Bxa3 Bxa3 21. Rxa3 Bb5 22. Rc5 a6 {The position is equal.} 23. gxf5 gxf5 24. Bf1 Nd7 {[%cal Bb6d7,Bd7b8,Bb8c6][%mdl 32]} 25. Rc2 Bxf1 26. Nxf1 Qb6 27. Qd3 Kh8 28. Raa2 Nb8 {White must now prevent ...Nc6.} 29. Rc5 Rg8+ 30. Ng3 {Active counter play!} Nc6 {[#] And now ...Nb4 would win.} 31. Qc3 Ne7 32. Rg2 Rac8 33. b4 Rxc5 34. bxc5 ({But not} 34. dxc5 Qb5 $17) 34... Qb1+ 35. Kf2 ({Much worse is} 35. Nf1 Rxg2+ 36. Kxg2 Qe4+ 37. Kg1 Nc6 $17) 35... Nc6 36. Ne2 {Rxg8+ is the strong threat.} Rxg2+ 37. Kxg2 a5 38. Kf2 a4 39. Qg3 Qb7 40. Qh4 {Weighted Error Value: White=0.06 (flawless) /Black=0.05 (flawless)} 1/2-1/2

[Event "15th Paleochora Open 2022"]
[Site "Paleochora"]
[Date "2022.07.20"]
[Round "5.11"]
[White "Zakarian, David"]
[Black "Antic, Dejan"]
[Result "1-0"]
[ECO "C00"]
[WhiteElo "2300"]
[BlackElo "2452"]
[Annotator "TA"]
[PlyCount "135"]
[EventDate "2022.07.17"]
[EventType "swiss"]
[EventCountry "GRE"]
[SourceTitle "playchess.com"]
[Source "ChessBase"]
[SourceQuality "1"]
[TimeControl "40/5400+30:900+30"]

{[%evp 9,135,-9,0,-13,29,25,29,-12,10,21,16,16,13,21,12,22,18,17,52,42,64,48,123,99,122,114,120,113,246,239,268,256,269,215,222,220,365,338,863,854,985,923,29991,29992,29992,377,386,369,368,372,381,365,383,376,380,375,345,350,383,301,271,281,264,278,363,304,447,425,407,384,382,345,478,474,452,448,495,399,407,288,288,262,351,342,451,435,535,529,894,889,829,819,744,603,1198,982,935,0,349,344,341,344,317,293,247,188,186,147,904,801,485,196,277,249,12850,27992,27993,27992,27993,27993,27994,27994,27995,0,0,0,27997,27997]} 1. e4 e6 2. Qe2 c5 3. g3 Nc6 4. Nf3 g6 5. Bg2 Bg7 6. c3 {[%cal Od2d4] C00: French: Unusual White 2nd moves.} Nf6 7. O-O O-O {[#]} 8. h3 $146 {White has an edge.} ({Predecessor:} 8. d4 d5 9. e5 Nd7 10. h4 f6 11. exf6 Qxf6 12. Bg5 Qf5 13. Na3 cxd4 14. cxd4 Bxd4 {0-1 (44) Rowson,J (2569)-Svidler,P (2758) London 2013}) 8... d5 9. e5 Nd7 10. d4 cxd4 11. cxd4 f6 12. exf6 Nxf6 13. Nc3 Bd7 14. Rd1 Qb6 15. Be3 Ne4 (15... Ne8 $14) 16. Nxe4 $1 $16 dxe4 17. Ne5 Nxe5 18. dxe5 Bb5 (18... Qb5 $16 19. Qxb5 Bxb5) 19. Qg4 $18 Qa6 20. Rd6 (20. Qxe4 Bc6 21. Qd4 Bxg2 22. Kxg2 Rf7 $16) (20. Bxe4 Be2 21. Bxb7 (21. Qg5 Bxd1 22. Rxd1 Qxa2 $15) 21... Bxg4 $11) 20... Qa4 21. Qxe6+ Kh8 22. Rd4 Qc2 (22... Rae8 $142 23. Rxa4 Rxe6 24. Rxe4 (24. Rxa7 Bc6 $16) 24... Rxe5 25. Rxe5 Bxe5) 23. Bxe4 Qxb2 (23... Qc8 24. Qxc8 Raxc8) 24. Rb1 Qe2 {[#]} 25. Bxg6 $1 {[%mdl 512] White threatens Rh4 and mate.} Bc6 (25... Rfe8 26. Bxe8) 26. Rh4 {[%csl Gg6][%cal Rh4h7]} h6 27. Bh5 $2 (27. Qe7 {mates} h5 28. Bxh5 Qxh5 29. Rxh5+ Kg8 30. Qe6+ Rf7 31. Qg6 b6 32. Qxc6) 27... Rf3 28. Bxf3 Qxf3 {[%csl Gc6][%cal Rf3h1]} 29. Rxh6+ Bxh6 30. Qxh6+ Kg8 {[%csl Gc6][%cal Rf3h1]} 31. Qg6+ Kh8 {[%csl Gc6][%cal Rf3h1]} 32. Qf6+ ({But not} 32. Qh6+ Kg8 33. Qg6+ Kh8 34. Qf6+ Qxf6 35. exf6 Kh7 $18) 32... Qxf6 33. exf6 {[%mdl 4096] Endgame KRB-KRB} Kg8 34. Bc5 {Against Rf8} Kf7 35. Be7 Rh8 36. Kh2 Rh5 37. a3 Rd5 (37... Bf3 {was called for.} 38. Rb4 Bc6) 38. Rb2 Rd3 39. Re2 Rf3 40. g4 a5 41. Re3 {aiming for Rxf3.} Rxf2+ 42. Kg3 Rd2 43. Rc3 Rd4 44. Kh4 Rd5 45. Rf3 Bb5 46. Kg3 Bd3 47. h4 {[%cal Bh3h4,Bh4h5][%mdl 32]} b5 48. h5 b4 49. axb4 a4 50. b5 Bxb5 51. Kh4 Rd4 52. Bc5 Rc4 {[#]} 53. Be7 $2 (53. h6 $1 $18 {[%cal Rh6h7] Threatens to win with h7.} Rxc5 54. h7) 53... Bd7 $2 {[%mdl 8192]} (53... Rd4 $1 $11 {and Black is okay.} 54. Rf5 Bd3) 54. Rg3 {Strongly threatening Kg5.} a3 55. Bxa3 Kxf6 56. Bb2+ Kf7 57. Be5 Kg8 58. Kg5 {And now Bf4 would win.} Kh7 $2 {[%mdl 8192]} (58... Rc5 $16) 59. Bf4 {Hoping for Re3.} Rc5+ 60. Kf6 (60. Kh4 $142) 60... Rb5 (60... Rc4 $142) 61. Be3 Bxg4 $2 (61... Ra5 62. g5 Kg8) 62. Rxg4 Rxh5 {KRB-KR} 63. Rg7+ Kh8 64. Rd7 Ra5 65. Bd4 Ra6+ 66. Kg5+ Kg8 67. Bf6 Ra8 $2 {[%mdl 8192]} (67... Kf8 $11) 68. Kg6 {Weighted Error Value: White=0.30/Black=0.57} 1-0